bitfinex/quotes_ETHUSD_20241123
["timestamp","ask_amount","ask_price","bid_price","bid_amount"]
[1732324383853,0.55,3339.1,3338.0,0.30252401]
[1732324384051,0.55,3339.1,3338.1,0.02995199]
[1732324385447,0.55,3339.1,3337.8,0.33952191]
[1732324385850,0.55,3339.1,3337.8,0.32774971]
[1732324386971,0.55,3339.1,3337.9,0.02995035]
[1732324388291,0.55,3338.7,3337.5,0.2978]
[1732324388493,0.55,3338.7,3337.4,0.8243968]
[1732324388788,0.55,3338.5,3337.4,0.0306968]
[1732324388987,0.55,3338.3,3337.4,0.0306968]
[1732324389376,0.7637,3338.2,3337.4,0.0306968]
[1732324389562,3.0,3339.5,3336.7,0.0302712]
[1732324389563,0.7637,3338.0,3336.7,0.0302712]
[1732324389885,0.34070719,3338.7,3336.7,0.0302712]
[1732324389886,0.55,3337.7,3336.7,0.0302712]
[1732324390394,0.55,3337.3,3336.7,0.0302712]
[1732324390898,0.7637,3337.2,3336.7,0.0302712]
[1732324391083,0.55,3337.1,3336.7,0.0302712]
[1732324391269,0.7637,3337.0,3336.7,0.0302712]
[1732324391473,0.55,3336.9,3336.7,0.0302712]
[1732324392074,0.55,3336.9,3336.6,0.0028274]
[1732324392075,0.7637,3336.8,3336.6,0.0028274]
[1732324392278,0.55,3336.7,3336.6,0.0028274]
[1732324392612,1.3137,3336.7,3336.6,0.0028274]
[1732324392817,0.55,3336.7,3336.0,0.02826617]
[1732324392970,0.01,3337.7,3336.0,0.02826617]
[1732324392971,0.55,3336.1,3336.0,0.02826617]
[1732324393172,1.50007,3336.1,3336.0,0.02826617]
[1732324393404,1.3137,3336.1,3336.0,0.02826617]
[1732324393790,1.3137,3336.1,3336.0,0.03471075]
[1732324396832,0.7714,3337.0,3336.0,0.03471075]
[1732324397008,0.7714,3336.8,3336.0,0.03471075]
[1732324397700,3.896725,3337.7,3335.3,0.0302712]
[1732324397701,0.7714,3336.4,3335.3,0.0302712]
[1732324398103,0.7714,3336.2,3335.3,0.0302712]
[1732324398419,0.55,3336.2,3335.7,0.00644458]
[1732324398574,0.55,3336.6,3335.7,0.00644458]
[1732324398778,0.55,3336.2,3335.7,0.00644458]
[1732324399116,0.34070719,3336.7,3335.7,0.00644458]
[1732324399117,1.3214,3335.9,3335.8,0.00644458]
[1732324402326,0.7714,3335.9,3335.8,0.00644458]
[1732324402490,0.7714,3336.9,3335.8,0.00644458]
[1732324402694,0.7714,3336.6,3335.8,0.00644458]
[1732324403807,0.7714,3336.4,3335.8,0.00644458]
[1732324404381,0.55,3336.3,3335.8,0.00644458]
[1732324404798,0.73714,3336.3,3335.8,0.00644458]
[1732324405589,0.7714,3336.0,3335.5,0.00644458]
[1732324405798,0.7714,3335.8,3335.5,0.00644458]
[1732324406324,0.55,3335.7,3335.5,0.00644458]
[1732324408936,0.55,3336.0,3335.5,0.00644458]
[1732324411104,0.55,3336.0,3335.3,0.0147989]
[1732324411302,0.55,3335.9,3335.3,0.0147989]
[1732324411488,0.55,3335.7,3335.3,0.0147989]
[1732324412832,0.55,3335.5,3335.3,0.0147989]
[1732324415044,0.51387233,3335.5,3335.3,0.0147989]
[1732324419507,0.72979845,3335.7,3335.3,0.0147989]
[1732324419711,0.807,3336.6,3335.3,0.04477891]
[1732324420019,0.807,3336.6,3335.4,0.7887]
[1732324422365,0.55,3336.5,3335.4,0.7887]
[1732324423173,3.55,3336.5,3335.3,0.0147989]
[1732324423325,0.4357,3336.4,3335.3,0.0147989]
[1732324425363,0.55,3336.3,3335.3,0.0147989]
[1732324426737,3.55,3336.1,3335.3,0.0147989]
[1732324426933,0.55,3336.3,3335.3,0.0147989]
[1732324427136,0.55,3335.9,3335.3,0.0147989]
[1732324427472,0.55,3335.9,3334.4,0.2978]
[1732324428329,0.55,3335.9,3334.3,0.0467911]
[1732324429340,0.55,3335.9,3334.4,0.02998355]
[1732324429997,0.55,3335.9,3334.4,0.32778355]
[1732324430270,0.55,3335.9,3334.4,0.02998355]
[1732324432070,0.73617406,3336.0,3334.5,0.64440045]
[1732324432288,0.807,3336.3,3334.6,0.02997932]
[1732324433420,0.807,3336.3,3334.6,0.02997912]
[1732324433594,0.55,3336.2,3334.6,0.02997912]
[1732324434245,0.55,3336.2,3334.4,0.03997992]
[1732324434438,0.55,3336.2,3334.5,0.64440045]
[1732324434647,0.55,3336.2,3334.6,0.02997993]
[1732324436977,1.29785335,3336.2,3335.6,0.875]
[1732324438093,0.8095,3336.1,3335.6,0.875]
[1732324438401,0.55,3336.0,3335.6,0.875]
[1732324438697,1.11573533,3336.0,3335.6,0.875]
[1732324439796,1.11573533,3336.0,3335.6,0.48402382]
[1732324439797,0.55,3335.8,3335.6,0.48402382]
[1732324440017,0.55,3335.8,3334.3,0.0467911]
[1732324440310,0.8095,3335.9,3334.3,0.0467911]
[1732324440798,0.8095,3335.9,3334.3,0.3445911]
[1732324440995,0.96523534,3335.9,3334.4,0.2978]
[1732324441201,0.96523534,3335.9,3334.5,0.02998564]
[1732324442003,0.55,3335.8,3334.5,0.02998564]
[1732324442507,0.55,3335.8,3334.4,0.02998563]
[1732324442657,0.8095,3335.7,3334.3,0.3445911]
[1732324442856,0.55,3335.6,3334.3,0.3445911]
[1732324443598,0.8095,3335.5,3334.3,0.0467911]
[1732324443902,0.55,3335.4,3334.3,0.0467911]
[1732324444893,0.55,3335.4,3334.3,0.3445911]
[1732324445368,0.55,3335.4,3334.3,0.69119155]
[1732324447096,0.55,3335.4,3334.9,0.03610476]
[1732324447299,0.8095,3335.5,3334.9,0.03610476]
[1732324448226,0.8095,3335.5,3334.3,0.0467911]
[1732324448498,1.55547014,3335.5,3334.3,0.0467911]
[1732324448717,0.70554701,3335.4,3334.3,0.0467911]
[1732324451090,0.55,3335.2,3334.3,0.0467911]
[1732324451413,0.55,3335.0,3333.2,0.0467911]
[1732324451709,0.8174,3334.9,3333.2,0.0467911]
[1732324451888,0.55,3334.8,3333.2,0.0467911]
[1732324452309,0.74174,3334.8,3333.2,0.0467911]
[1732324454229,0.8174,3334.7,3333.2,0.0467911]
[1732324454523,0.55,3334.6,3333.2,0.0467911]
[1732324455083,0.55,3334.6,3333.3,0.2978]
[1732324455397,0.55,3334.6,3333.4,0.0299954]
[1732324456613,0.8271,3335.3,3333.4,0.0299954]
[1732324457811,0.55,3335.2,3333.4,0.0299954]
[1732324462530,0.55,3334.8,3333.1,0.0621689]
[1732324462730,0.55,3334.8,3333.1,0.09216357]
[1732324463241,0.55,3334.6,3333.1,0.0621689]
[1732324464808,6.134,3335.0,3333.1,0.0621689]
[1732324464809,0.8271,3334.5,3333.1,0.0621689]
[1732324465013,0.55,3334.4,3333.1,0.0621689]
[1732324468466,0.55,3334.4,3333.2,0.123441]
[1732324469157,0.76140168,3334.4,3333.2,0.123441]
[1732324472377,0.55,3334.4,3333.2,0.123441]
[1732324472554,0.55,3334.4,3333.2,0.1534367]
[1732324473145,0.55,3334.4,3333.2,0.123441]
[1732324483162,1.28932778,3334.4,3333.2,0.123441]
[1732324483365,0.55,3334.4,3333.2,0.123441]
[1732324483982,0.16749,3334.3,3333.2,0.123441]
[1732324484156,0.55,3334.2,3333.2,0.123441]
[1732324488490,0.55,3334.2,3333.1,0.0621689]
[1732324488491,0.55,3334.0,3333.1,0.0621689]
[1732324489354,0.16749,3334.3,3333.1,0.0621689]
[1732324489355,1.3524,3334.2,3333.1,0.0621689]
[1732324489586,0.8024,3333.9,3332.3,0.0357355]
[1732324489790,0.8024,3333.7,3332.3,0.0357355]
[1732324489988,0.8024,3333.5,3332.3,0.0357355]
[1732324490192,0.55,3333.4,3332.3,0.0357355]
[1732324494975,0.8024,3333.3,3332.3,0.0357355]
[1732324495285,0.55,3333.2,3332.3,0.0357355]
[1732324495686,0.7507,3333.1,3332.3,0.0357355]
[1732324495870,0.55,3333.0,3332.3,0.0357355]
[1732324497101,3.0,3332.8,3331.6,0.0357355]
[1732324497321,0.55,3333.0,3331.6,0.0357355]
[1732324497322,0.55,3332.6,3331.6,0.0357355]
[1732324497480,0.55,3333.0,3331.6,0.0357355]
[1732324502181,1.29614936,3333.0,3331.6,0.0357355]
[1732324502479,0.55,3333.0,3331.6,0.0357355]
[1732324502683,0.55,3332.8,3331.6,0.0357355]
[1732324504609,3.0,3333.5,3331.6,0.0357355]
[1732324504835,0.7507,3333.4,3331.6,0.0357355]
[1732324505411,0.7507,3333.9,3331.7,0.67440992]
[1732324505615,0.7507,3333.9,3331.9,0.2978]
[1732324505910,0.7507,3334.2,3332.0,0.03000359]
[1732324506349,0.16749,3334.3,3332.1,0.2978]
[1732324506526,1.0485,3334.5,3332.2,0.03000092]
[1732324506727,0.0357355,3334.7,3332.8,0.01]
[1732324506943,0.79033269,3334.7,3333.0,0.01]
[1732324507242,0.0357355,3334.7,3333.1,0.45775131]
[1732324507453,0.0357355,3334.7,3333.2,0.03998967]
[1732324507622,0.0357355,3334.7,3333.4,0.01]
[1732324507833,0.0357355,3334.7,3333.6,0.2978]
[1732324508031,0.0357355,3334.7,3333.7,0.48773754]
[1732324508589,0.0357355,3334.7,3333.7,0.45775131]
[1732324508736,0.0357355,3334.7,3333.4,0.02998464]
[1732324508934,0.0357355,3334.7,3333.4,0.48773595]
[1732324509367,0.0357355,3334.7,3333.5,0.45775131]
[1732324509648,0.0357355,3334.7,3333.6,0.02999006]
[1732324509886,0.55,3334.6,3333.7,0.45775131]
[1732324510024,0.55,3334.6,3332.9,0.02999159]
[1732324510223,0.55,3334.6,3331.8,0.01]
[1732324510429,0.55,3334.4,3332.3,0.45775131]
[1732324510653,0.55,3334.2,3332.3,0.45775131]
[1732324510861,0.55,3334.2,3332.4,0.02999967]
[1732324511080,0.55,3334.2,3332.5,0.45775131]
[1732324511435,0.55,3334.0,3332.0,0.45775131]
[1732324511634,0.55,3334.0,3332.1,0.03000402]
[1732324511836,0.55,3334.0,3332.2,0.45775131]
[1732324512732,0.55,3334.0,3331.6,0.3635392]
[1732324512976,0.55,3334.0,3331.7,0.45775131]
[1732324512977,0.55,3333.6,3331.7,0.45775131]
[1732324513134,0.55,3333.4,3331.7,0.45775131]
[1732324514182,0.55,3333.4,3331.7,0.48775979]
[1732324515154,0.55,3333.4,3331.8,0.03000852]
[1732324515356,0.55,3333.4,3331.9,0.42841464]
[1732324515569,0.55,3333.4,3331.8,0.03000852]
[1732324516181,0.55,3333.4,3331.8,0.42841464]
[1732324516385,0.55,3333.4,3331.9,0.45842116]
[1732324517017,0.55,3333.4,3331.9,0.42841464]
[1732324517407,0.55,3333.4,3331.6,0.06574261]
[1732324517715,0.55,3333.4,3331.6,0.0357355]
[1732324518082,0.55,3333.4,3331.7,0.42841464]
[1732324518282,0.55,3333.4,3331.6,0.0357355]
[1732324518500,0.7811,3333.4,3331.6,0.0357355]
[1732324518705,0.7811,3333.2,3331.6,0.0357355]
[1732324518903,0.7811,3333.4,3331.6,0.0357355]
[1732324519112,0.7811,3333.2,3331.6,0.0357355]
[1732324519298,0.55,3333.5,3331.6,0.0357355]
[1732324519491,0.74267329,3333.6,3331.6,0.0357355]
[1732324519492,0.55,3333.3,3331.6,0.0357355]
[1732324519722,0.55,3333.1,3331.6,0.0357355]
[1732324519944,0.55,3332.9,3331.6,0.0357355]
[1732324520084,0.7811,3332.8,3331.6,0.0357355]
[1732324520412,0.55,3332.7,3331.6,0.0357355]
[1732324520742,0.55,3332.5,3331.6,0.0357355]
[1732324521033,0.55,3332.5,3331.5,0.0032285]
[1732324523629,0.55,3332.5,3330.7,0.035044]
[1732324523630,0.7811,3332.0,3330.7,0.035044]
[1732324523881,3.02,3332.7,3329.9,0.035044]
[1732324523882,0.7811,3331.8,3329.9,0.035044]
[1732324524084,0.7811,3331.4,3329.9,0.035044]
[1732324524376,0.55,3331.1,3329.9,0.035044]
[1732324524546,0.7811,3331.0,3329.9,0.035044]
[1732324524869,0.55,3330.9,3330.8,0.00644458]
[1732324525547,0.7811,3331.4,3330.8,0.00644458]
[1732324525752,0.7811,3332.9,3330.8,0.00644458]
[1732324526645,3.134,3332.8,3330.8,0.00644458]
[1732324526963,3.39151,3332.7,3330.8,0.00644458]
[1732324527150,0.7811,3332.6,3330.8,0.00644458]
[1732324527333,3.0,3332.3,3330.8,0.00644458]
[1732324527551,0.7811,3332.2,3330.8,0.00644458]
[1732324527797,0.7811,3331.7,3330.8,0.00644458]
[1732324527997,0.55,3331.6,3330.8,0.00644458]
[1732324528353,0.5,3331.4,3330.8,0.00644458]
[1732324528887,0.7811,3331.3,3330.8,0.00644458]
[1732324529452,0.7811,3331.3,3328.5,0.01]
[1732324529679,0.7811,3331.3,3329.1,0.40098964]
[1732324530359,0.55,3331.2,3329.1,0.40098964]
[1732324531394,1.3311,3331.5,3329.1,0.40098964]
[1732324531600,0.55,3331.1,3329.1,0.40098964]
[1732324532604,7.1984468,3331.0,3328.4,0.035044]
[1732324532901,4.3311,3330.6,3328.4,0.035044]
[1732324533082,4.3311,3330.6,3326.2,0.03003344]
[1732324533083,0.01,3329.8,3325.9,2.15670345]
[1732324533258,0.55,3329.7,3327.4,0.2978]
[1732324533452,0.03565972,3329.6,3327.5,0.36832319]
[1732324533785,0.55,3329.5,3327.5,0.36832319]
[1732324534094,0.55,3329.3,3327.5,0.31832319]
[1732324534506,0.55,3329.4,3327.5,0.31832319]
[1732324534799,0.55,3329.1,3327.1,0.2978]
[1732324535000,0.55,3329.1,3327.3,0.2978]
[1732324535212,0.562994,3329.1,3327.3,0.2978]
[1732324535380,0.562994,3329.1,3327.0,0.63442162]
[1732324535710,0.55,3328.9,3327.0,0.2978]
[1732324535907,0.55,3328.7,3327.0,0.2978]
[1732324536070,0.55,3328.7,3326.9,2.73]
[1732324536407,0.55,3329.0,3326.9,2.73]
[1732324536613,0.55,3328.8,3326.9,2.73]
[1732324536769,0.55,3328.6,3326.9,2.73]
[1732324537196,0.55,3328.4,3326.9,2.73]
[1732324537395,0.55,3328.2,3326.9,2.73]
[1732324537773,0.55,3328.2,3326.4,0.33662162]
[1732324537774,0.55,3328.0,3326.4,0.33662162]
[1732324537989,0.55,3327.8,3326.4,0.33662162]
[1732324539271,0.55,3328.0,3326.4,0.33662162]
[1732324539604,0.55,3327.8,3326.4,0.33662162]
[1732324539768,0.55,3327.9,3325.8,2.73]
[1732324539969,0.55,3327.7,3325.9,0.33662162]
[1732324542207,0.55,3328.4,3325.9,0.33662162]
[1732324542409,0.55,3328.4,3325.9,3.33662162]
[1732324542608,0.73756857,3328.7,3325.9,3.33662162]
[1732324542810,0.012994,3329.1,3326.8,2.73]
[1732324543014,0.012994,3329.1,3326.9,3.0]
[1732324543684,0.012994,3329.1,3326.9,3.33662162]
[1732324544531,0.012994,3329.1,3326.9,3.0]
[1732324544822,0.012994,3329.1,3327.1,0.55]
[1732324546077,0.012994,3329.1,3327.0,0.33662162]
[1732324546900,0.012994,3329.1,3327.1,0.2978]
[1732324547585,0.012994,3329.1,3327.3,0.2978]
[1732324547819,0.012994,3329.1,3327.5,0.2978]
[1732324548612,0.012994,3329.1,3327.5,0.2478]
[1732324548780,0.012994,3329.1,3327.3,0.1978]
[1732324548975,0.012994,3329.1,3327.5,0.1978]
[1732324549982,0.012994,3329.1,3327.0,0.1978]
[1732324550695,0.012994,3329.1,3327.0,0.53442162]
[1732324550895,0.012994,3329.1,3327.2,0.1978]
[1732324551813,0.012994,3329.1,3327.1,0.1978]
[1732324552597,0.012994,3329.1,3327.1,0.53442162]
[1732324552924,0.012994,3329.1,3327.9,2.73]
[1732324553122,0.012994,3329.1,3328.0,0.53442162]
[1732324553524,0.012994,3329.1,3327.9,2.73]
[1732324557825,0.012994,3329.1,3328.0,0.33662162]
[1732324558217,0.012994,3329.1,3328.0,0.63442162]
[1732324558410,0.012994,3329.1,3328.0,0.33662162]
[1732324559839,0.012994,3329.1,3328.1,0.2978]
[1732324560151,0.012994,3329.1,3328.3,0.2978]
[1732324560451,0.012994,3329.1,3328.5,0.2978]
[1732324560632,0.012994,3329.1,3328.5,0.63442162]
[1732324560807,0.00092641,3329.1,3328.5,0.58442162]
[1732324561274,0.00092641,3329.1,3328.7,0.1978]
[1732324561445,0.00092641,3329.1,3328.6,0.63442162]
[1732324561813,0.00092641,3329.1,3328.6,0.33662162]
[1732324562553,0.00092641,3329.1,3328.7,0.55]
[1732324562709,0.00092641,3329.1,3328.8,0.33662162]
[1732324562910,0.00092641,3329.1,3328.1,0.30908421]
[1732324563107,0.00092641,3329.1,3328.5,0.33662162]
[1732324563611,0.00092641,3329.1,3328.6,0.2978]
[1732324563810,0.00092641,3329.1,3328.7,0.33662162]
[1732324564343,0.00092641,3329.1,3328.7,0.63442162]
[1732324564712,0.00092641,3329.1,3328.7,0.2978]
[1732324565329,0.00092641,3329.1,3328.4,0.2978]
[1732324566032,0.00092641,3329.1,3328.2,0.00558636]
[1732324567272,0.55,3328.9,3328.2,0.00558636]
[1732324568426,0.55,3328.7,3328.2,0.00558636]
[1732324570066,0.8031,3328.8,3328.2,0.00558636]
[1732324572266,0.55,3328.7,3328.2,0.00558636]
[1732324574149,0.8031,3328.8,3328.2,0.00558636]
[1732324577886,0.55,3328.7,3328.2,0.00558636]
[1732324578593,0.55,3329.0,3328.2,0.00558636]
[1732324578839,0.03755272,3328.9,3328.2,0.00558636]
[1732324579095,0.7702,3328.3,3325.6,0.2978]
[1732324579291,0.55,3328.2,3325.8,0.2978]
[1732324579596,0.7702,3328.3,3326.0,0.2978]
[1732324579753,0.7702,3328.3,3326.1,0.33662162]
[1732324579754,0.55,3328.2,3326.1,0.33662162]
[1732324580166,0.55,3328.8,3326.2,0.2978]
[1732324580370,0.7702,3328.9,3326.3,0.63442162]
[1732324580596,0.7702,3328.9,3326.3,0.94350583]
[1732324581064,0.7702,3328.9,3326.4,0.55]
[1732324581265,0.7702,3328.9,3326.5,0.63442162]
[1732324581676,0.55,3328.8,3326.5,0.63442162]
[1732324582008,0.55,3328.8,3326.6,0.2978]
[1732324582205,0.55,3328.8,3326.8,0.2978]
[1732324582505,0.75017655,3329.1,3326.3,0.30908421]
[1732324582506,0.00092641,3329.1,3327.0,0.2978]
[1732324582713,0.00092641,3329.1,3326.9,0.33662162]
[1732324582714,0.00092641,3329.1,3327.2,0.2978]
[1732324582871,0.00092641,3329.1,3327.1,0.88662162]
[1732324582872,0.00092641,3329.1,3327.4,0.2978]
[1732324583073,0.00092641,3329.1,3327.6,3.0943]
[1732324583305,6.669e-05,3329.1,3327.8,0.2978]
[1732324583470,6.669e-05,3329.1,3328.0,0.2978]
[1732324583860,6.669e-05,3329.1,3328.3,0.55]
[1732324584127,6.669e-05,3329.1,3328.4,0.94350583]
[1732324584265,0.7702,3331.5,3328.6,0.2978]
[1732324584464,0.7702,3331.5,3328.4,0.64570583]
[1732324584465,0.7702,3331.5,3328.8,0.2978]
[1732324584704,0.7702,3331.5,3329.0,0.2978]
[1732324585098,0.7702,3331.5,3329.0,0.63442162]
[1732324585816,0.7702,3330.7,3329.0,0.63442162]
[1732324586190,0.55,3330.2,3328.5,0.2978]
[1732324586372,0.55,3330.2,3328.7,0.2978]
[1732324586882,0.7702,3330.1,3328.2,0.2978]
[1732324587089,0.55,3330.0,3327.6,2.7965]
[1732324587275,0.03753703,3329.9,3327.7,0.33662162]
[1732324587471,0.55,3329.6,3327.7,0.33662162]
[1732324587987,0.55,3329.6,3327.8,0.2978]
[1732324588315,0.7702,3330.2,3328.0,0.2978]
[1732324588521,0.7702,3330.2,3328.2,0.2978]
[1732324588676,0.7702,3330.2,3328.4,0.2978]
[1732324589203,0.7702,3330.6,3328.4,0.63442162]
[1732324589373,0.7702,3330.6,3328.6,0.2978]
[1732324590480,0.7702,3330.6,3327.7,0.2978]
[1732324590693,0.7702,3330.6,3327.6,2.7965]
[1732324590694,0.7702,3330.6,3328.1,0.2978]
[1732324590889,0.55,3330.2,3328.1,0.2978]
[1732324591317,0.55,3330.0,3328.1,0.2978]
[1732324591763,0.55,3330.0,3327.7,0.2978]
[1732324591927,0.55,3330.0,3327.7,0.63442162]
[1732324592127,0.55,3330.0,3327.9,0.2978]
[1732324592358,0.55,3330.0,3328.1,0.2978]
[1732324592648,0.7702,3330.4,3328.3,0.2978]
[1732324592847,0.7702,3330.4,3328.5,0.2978]
[1732324593063,0.7702,3330.2,3328.5,0.2978]
[1732324593954,0.55,3330.1,3327.9,0.2978]
[1732324594116,0.55,3330.1,3328.4,0.2978]
[1732324594319,0.7702,3330.5,3328.6,0.2978]
[1732324594518,0.7702,3330.5,3328.8,0.2978]
[1732324594833,0.7702,3330.5,3328.8,0.63442162]
[1732324594834,0.0387204,3330.3,3328.8,0.63442162]
[1732324596038,0.0387204,3330.3,3329.0,0.2978]
[1732324596241,0.0387204,3330.3,3329.0,0.67094948]
[1732324597360,0.55,3330.2,3329.0,0.67094948]
[1732324597734,0.0387204,3330.2,3329.0,0.67094948]
[1732324597946,0.0387204,3330.2,3328.7,0.2978]
[1732324598154,0.0387204,3330.2,3328.9,0.2978]
[1732324598517,0.55,3330.1,3328.9,0.2978]
[1732324598759,1.3866204,3330.1,3328.7,0.37314948]
[1732324598983,1.3866204,3330.1,3328.5,0.2978]
[1732324598984,0.55,3329.9,3328.5,0.2978]
[1732324599191,0.55,3329.9,3328.4,0.2978]
[1732324599686,0.7979,3329.8,3328.4,0.2978]
[1732324599983,0.7979,3329.8,3328.5,0.37314948]
[1732324600186,0.55,3329.7,3328.5,0.37314948]
[1732324602590,0.0387204,3330.0,3328.6,0.2978]
[1732324602787,0.0387204,3330.0,3327.7,3.0]
[1732324602788,0.0387204,3330.0,3328.8,0.2978]
[1732324603095,0.0387204,3330.0,3329.0,0.2978]
[1732324603590,0.0387204,3330.0,3329.2,0.2978]
[1732324603772,0.0387204,3330.0,3329.4,0.2978]
[1732324603990,0.0387204,3330.0,3329.5,0.2978]
[1732324604873,0.0387204,3330.0,3328.8,0.2978]
[1732324605070,0.0387204,3330.0,3329.0,0.2978]
[1732324605296,0.0387204,3330.0,3329.2,0.2978]
[1732324607368,0.7979,3329.9,3329.2,0.2978]
[1732324608071,0.7979,3329.9,3329.3,0.2978]
[1732324608307,0.7979,3329.9,3329.5,0.2978]
[1732324608495,0.0387204,3330.0,3329.5,0.2978]
[1732324609217,0.0387204,3330.0,3329.3,0.2978]
[1732324609517,0.0387204,3330.0,3329.5,0.2978]
[1732324609875,0.0387204,3330.0,3329.7,0.2978]
[1732324610283,0.00278981,3330.0,3329.9,0.2978]
[1732324610619,0.00278981,3330.0,3329.9,0.67094948]
[1732324611411,0.00020651,3330.0,3329.9,0.67094948]
[1732324613913,0.7979,3331.1,3329.9,0.67094948]
[1732324614113,0.0544754,3331.2,3330.1,0.2978]
[1732324614324,0.0544754,3331.2,3330.2,0.67094948]
[1732324616410,0.0544754,3331.2,3330.4,0.2978]
[1732324616613,0.0544754,3331.2,3330.6,0.2978]
[1732324616917,0.0544754,3331.2,3330.9,0.00644458]
[1732324618498,0.0544754,3331.2,3331.0,0.00644458]
[1732324618728,0.0544754,3331.2,3331.1,0.00644458]
[1732324618910,0.0544754,3331.2,3331.1,0.37959406]
[1732324620119,0.0040429,3331.2,3331.1,0.37959406]
[1732324620449,0.0040429,3331.2,3331.1,0.00644458]
[1732324625047,0.7546429,3331.2,3331.1,0.00644458]
[1732324625225,1.3046429,3331.2,3331.1,0.00644458]
[1732324625672,1.3046429,3331.2,3330.0,0.36559185]
[1732324625860,0.55,3331.1,3330.0,0.36559185]
[1732324626355,0.7546429,3331.2,3330.0,0.36559185]
[1732324626743,0.7546429,3331.2,3330.1,0.2978]
[1732324626980,0.7546429,3331.2,3330.2,0.37251968]
[1732324627348,0.7546429,3331.2,3330.3,0.2978]
[1732324627686,0.7546429,3331.2,3330.5,0.2978]
[1732324628658,0.7546429,3331.2,3330.6,0.2978]
[1732324629182,0.7546429,3331.2,3330.2,0.2978]
[1732324629748,0.7546429,3331.2,3330.3,0.37251968]
[1732324630687,0.55,3331.1,3330.3,0.37251968]
[1732324631047,0.01,3330.8,3330.3,0.37251968]
[1732324631273,0.7506,3330.3,3329.0,0.2978]
[1732324631473,0.7506,3330.1,3329.2,0.2978]
[1732324631677,0.55,3330.2,3327.7,0.2978]
[1732324631678,0.55,3329.8,3327.7,0.2978]
[1732324631890,0.7506,3329.7,3329.1,0.37251968]
[1732324633471,0.01,3330.5,3329.1,0.37251968]
[1732324634127,0.01,3331.1,3329.2,0.8033]
[1732324634251,0.01,3331.1,3329.3,0.67031968]
[1732324634445,0.01,3331.1,3329.5,0.2978]
[1732324634650,0.01,3331.6,3329.6,1.17581968]
[1732324634871,0.75402895,3332.3,3329.6,1.17581968]
[1732324634872,0.01,3331.1,3329.6,1.47361968]
[1732324635152,0.01,3330.9,3329.6,1.47361968]
[1732324635597,0.01,3330.7,3329.6,0.67031968]
[1732324635887,0.01,3330.7,3329.6,0.37251968]
[1732324636482,0.8295,3330.6,3329.6,0.37251968]
[1732324636687,0.56,3330.5,3329.6,0.37251968]
[1732324637591,0.55,3330.5,3329.6,0.37251968]
[1732324637960,0.56,3330.5,3329.6,0.37251968]
[1732324639194,0.8295,3330.4,3329.6,0.37251968]
[1732324640296,0.01,3330.3,3329.6,0.37251968]
[1732324640499,0.8295,3330.2,3329.1,0.37251968]
[1732324640650,0.76516815,3331.3,3329.1,0.37251968]
[1732324640651,0.56,3329.9,3329.1,0.37251968]
[1732324640851,0.8295,3329.6,3328.6,0.37251968]
[1732324641073,0.01,3329.5,3328.6,0.37251968]
[1732324641899,0.01,3329.5,3328.7,0.2986]
[1732324642053,0.01,3329.5,3328.6,0.37251968]
[1732324642395,0.8295,3329.2,3328.6,0.37251968]
[1732324642688,0.8295,3329.2,3328.1,0.67111968]
[1732324643097,0.01,3328.8,3328.1,0.37251968]
[1732324643249,0.8295,3328.5,3327.6,0.37251968]
[1732324644723,0.41475,3328.5,3327.7,1.0795]
[1732324644922,0.01,3329.2,3327.9,0.2986]
[1732324645140,0.01,3329.4,3328.0,0.37251968]
[1732324645430,0.01,3329.4,3328.1,0.2986]
[1732324645733,0.01,3329.4,3328.2,0.37251968]
[1732324646026,0.01,3328.5,3327.5,0.0544754]
[1732324646228,0.01,3328.5,3327.6,0.37251968]
[1732324646723,0.01,3327.9,3327.5,0.0544754]
[1732324647291,0.01,3327.6,3327.5,0.0544754]
[1732324647686,1.36,3327.6,3327.5,0.0544754]
[1732324647889,0.96512514,3327.6,3327.5,0.0544754]
[1732324648328,0.41512514,3327.6,3327.5,0.42699508]
[1732324648528,0.01,3329.5,3327.5,0.42699508]
[1732324648529,0.55,3329.2,3327.5,0.42699508]
[1732324648891,0.55,3329.3,3327.6,0.37251968]
[1732324649106,0.01,3330.0,3327.6,0.37251968]
[1732324649308,0.01,3330.2,3327.6,0.37251968]
[1732324649498,0.04754958,3330.2,3327.6,0.37251968]
[1732324649899,0.04754958,3330.2,3327.7,0.7881]
[1732324649900,0.03754958,3330.2,3327.7,0.7881]
[1732324650097,0.0475462,3330.8,3327.8,0.37251968]
[1732324650398,0.01,3330.1,3327.8,0.37251968]
[1732324650644,0.01,3330.3,3327.8,0.37251968]
[1732324650805,0.8,3330.2,3327.8,0.37251968]
[1732324651140,0.8,3330.0,3327.8,0.37251968]
[1732324651436,0.8,3329.8,3327.8,0.37251968]
[1732324651598,0.8,3329.6,3327.8,0.37251968]
[1732324651819,0.58754874,3329.5,3327.8,0.37251968]
[1732324652030,0.55,3329.1,3327.8,0.37251968]
[1732324652237,0.55,3328.7,3327.5,0.0544754]
[1732324652468,0.55,3328.5,3327.5,0.0544754]
[1732324652771,0.8,3328.4,3327.5,0.0544754]
[1732324654127,0.55,3328.3,3327.5,0.0544754]
[1732324655026,0.55,3328.1,3327.5,0.0544754]
[1732324655344,0.55,3328.1,3327.4,0.37251968]
[1732324656067,0.55,3328.1,3327.1,0.0833484]
[1732324656366,0.8075,3328.0,3327.1,0.0833484]
[1732324657025,0.8075,3328.0,3327.2,0.37251968]
[1732324659061,0.8075,3328.0,3327.1,0.0833484]
[1732324659062,0.55,3327.9,3327.1,0.0833484]
[1732324659637,0.55,3327.9,3327.2,0.37251968]
[1732324661257,0.8075,3328.0,3327.2,0.37251968]
[1732324662997,0.55,3327.9,3327.2,0.37251968]